fUST/lending_fUST_20250613
["ID","MTS","AMOUNT","RATE_DAILY","PERIOD"]
[365660516,1749823844511,-2232.62,0.00021917,4]
[365660518,1749823844520,-460.0,0.00021917,4]
[365660520,1749823844529,-460.0,0.00021917,4]
[365660522,1749823844539,-460.0,0.00021917,4]
[365660524,1749823844548,-460.0,0.00021917,4]
[365660526,1749823844558,-270.0,0.00021917,4]
[365660528,1749823844570,-1088.01,0.00021917,4]
[365660530,1749823844580,-460.0,0.00021917,4]
[365660532,1749823844590,-460.0,0.00021917,4]
[365660534,1749823844599,-460.0,0.00021917,4]
[365660536,1749823844609,-460.0,0.00021917,4]
[365660538,1749823844618,-460.0,0.00021917,4]
[365660540,1749823844629,-460.0,0.00021917,4]
[365660542,1749823844640,-460.0,0.00021917,4]
[365660544,1749823844649,-1889.33,0.00021917,4]
[365660546,1749823844660,-460.0,0.00021917,4]
[365660548,1749823844669,-330.0,0.00021917,4]
[365660550,1749823844678,-627.58,0.00021917,4]
[365660552,1749823844687,-2525.75,0.00021917,4]
[365660554,1749823844697,-460.0,0.00021917,4]
[365660556,1749823844706,-460.0,0.00021917,4]
[365660558,1749823844717,-460.0,0.00021917,4]
[365660560,1749823844726,-460.0,0.00021917,4]
[365660562,1749823844735,-3564.51,0.00021917,4]
[365660564,1749823844745,-460.0,0.00021917,4]
[365660566,1749823844754,-460.0,0.00021917,4]
[365660568,1749823844763,-460.0,0.00021917,4]
[365660570,1749823844772,-500.0,0.00021917,4]
[365660572,1749823844782,-460.0,0.00021917,4]
[365660574,1749823844791,-460.0,0.00021917,4]
[365660576,1749823844800,-1000.0,0.00022,22]
[365660578,1749823844810,-6750.0,0.00022,2]
[365660580,1749823844822,-693.97484646,0.00022003,6]
[365660582,1749823844831,-623.0,0.00022054,2]
[365660584,1749823844840,-160.0,0.00022068,2]
[365660586,1749823844849,-160.0,0.00022068,2]
[365660588,1749823844858,-160.0,0.00022068,2]
[365660590,1749823844868,-160.0,0.00022068,2]
[365660592,1749823844877,-12531.02669373,0.00022068,2]
[365660594,1749823844886,-213.24139183,0.00022068,2]
[365660596,1749823844895,-160.0,0.00022073,2]
[365660598,1749823844904,-229.78555783,0.00022073,2]
[365660600,1749823844913,-504.52806028,0.00022108,2]
[365660602,1749823844923,-365.2062734,0.0002211,2]
[365660604,1749823844932,-720.9963032,0.00022119,2]
[365660606,1749823844941,-653.0,0.00022133,2]
[365660608,1749823844950,-693.97484646,0.00022141,6]
[365660610,1749823844961,-1000.0,0.00022148,2]
[365660612,1749823844970,-460.0,0.00022191,4]
[365660614,1749823844980,-460.0,0.00022191,4]
[365660616,1749823844990,-460.0,0.00022191,4]
[365660618,1749823844999,-460.0,0.00022191,4]
[365660620,1749823845009,-460.0,0.00022191,4]
[365660622,1749823845018,-460.0,0.00022191,4]
[365660624,1749823845028,-460.0,0.00022191,4]
[365660626,1749823845037,-460.0,0.00022191,4]
[365660628,1749823845047,-460.0,0.00022191,4]
[365660630,1749823845059,-460.0,0.00022191,4]
[365660632,1749823845074,-460.0,0.00022191,4]
[365660634,1749823845084,-460.0,0.00022191,4]
[365660636,1749823845093,-460.0,0.00022191,4]
[365660639,1749823845104,-460.0,0.00022191,4]
[365660641,1749823845114,-460.0,0.00022191,2]
[365660643,1749823845125,-300.22298708,0.00022191,4]
[365660645,1749823845134,-460.0,0.00022191,4]
[365660646,1749823845143,-460.0,0.00022191,4]
[365660649,1749823845153,-460.0,0.00022191,4]
[365660651,1749823845167,-460.0,0.00022191,4]
[365660653,1749823845185,-460.0,0.00022191,4]
[365660655,1749823845201,-1834.56,0.00022191,4]
[365660657,1749823845211,-460.0,0.00022191,4]
[365660659,1749823845221,-2784.47,0.00022191,4]
[365660661,1749823845230,-460.0,0.00022191,4]
[365660663,1749823845241,-305.13,0.00022191,4]
[365660665,1749823845251,-460.0,0.00022191,4]
[365660667,1749823845260,-460.0,0.00022191,4]
[365660669,1749823845270,-460.0,0.00022191,4]
[365660671,1749823845280,-460.0,0.00022191,4]
[365660672,1749823845289,-460.0,0.00022191,4]
[365660675,1749823845299,-460.0,0.00022191,4]
[365660677,1749823845308,-1433.23,0.00022191,4]
[365660679,1749823845320,-1946.46,0.00022191,4]
[365660681,1749823845330,-460.0,0.00022191,4]
[365660683,1749823845339,-2344.68,0.00022191,4]
[365660685,1749823845349,-854.78,0.00022191,4]
[365660687,1749823845359,-460.0,0.00022191,4]
[365660689,1749823845369,-460.0,0.00022191,4]
[365660691,1749823845378,-460.0,0.00022191,4]
[365660693,1749823845388,-460.0,0.00022191,4]
[365660695,1749823845398,-460.0,0.00022191,4]
[365660697,1749823845408,-470.89,0.00022191,4]
[365660699,1749823845417,-460.0,0.00022191,4]
[365660701,1749823845428,-460.0,0.00022191,4]
[365660703,1749823845437,-460.0,0.00022191,4]
[365660705,1749823845447,-460.0,0.00022191,4]
[365660707,1749823845456,-971.46,0.00022191,4]
[365660709,1749823845466,-460.0,0.00022191,4]
[365660711,1749823845475,-460.0,0.00022191,4]
[365660713,1749823845484,-460.0,0.00022191,4]
[365660715,1749823845493,-460.0,0.00022191,4]
[365660717,1749823845503,-460.0,0.00022191,4]
[365660719,1749823845512,-996.54,0.00022191,4]
[365660721,1749823845523,-460.0,0.00022191,4]
[365660723,1749823845533,-460.0,0.00022191,4]
[365660725,1749823845543,-460.0,0.00022191,4]
[365660726,1749823845552,-460.0,0.00022191,4]
[365660729,1749823845562,-460.0,0.00022191,4]
[365660731,1749823845573,-460.0,0.00022191,4]
[365660733,1749823845583,-713.93,0.00022191,4]
[365660735,1749823845593,-460.0,0.00022191,4]
[365660736,1749823845602,-396.00904347,0.00022191,4]
[365660739,1749823845612,-460.0,0.00022191,4]
[365660740,1749823845621,-460.0,0.00022191,4]
[365660743,1749823845631,-460.0,0.00022191,4]
[365660744,1749823845641,-732.16,0.00022191,4]
[365660747,1749823845650,-712.62,0.00022191,4]
[365660749,1749823845660,-460.0,0.00022191,4]
[365660751,1749823845670,-2232.62,0.00022191,4]
[365660753,1749823845679,-460.0,0.00022191,4]
[365660755,1749823845688,-460.0,0.00022191,4]
[365660757,1749823845697,-460.0,0.00022191,4]
[365660759,1749823845706,-460.0,0.00022191,4]
[365660760,1749823845715,-1088.01,0.00022191,4]
[365660762,1749823845725,-460.0,0.00022191,4]
[365660764,1749823845734,-460.0,0.00022191,4]
[365660766,1749823845744,-340.0,0.00022191,4]
[365660768,1749823845753,-460.0,0.00022191,4]
[365660770,1749823845762,-460.0,0.00022191,4]
[365660772,1749823845771,-460.0,0.00022191,4]
[365660774,1749823845781,-190.89389746,0.00022191,4]
[365660777,1749823845790,-1889.33,0.00022191,4]
[365660779,1749823845800,-460.0,0.00022191,4]
[365660781,1749823845810,-2525.75,0.00022191,4]
[365660782,1749823845822,-627.58,0.00022191,4]
[365660785,1749823845832,-460.0,0.00022191,4]
[365660786,1749823845840,-360.39195059,0.00022191,4]
[365660788,1749823845850,-460.0,0.00022191,4]
[365660791,1749823845860,-460.0,0.00022191,4]
[365660793,1749823845870,-3564.51,0.00022191,4]
[365660795,1749823845879,-460.0,0.00022191,4]
[365660797,1749823845888,-460.0,0.00022191,4]
[365660798,1749823845898,-460.0,0.00022191,4]
[365660800,1749823845908,-500.0,0.00022191,4]
[365660802,1749823845917,-460.0,0.00022191,4]
[365660804,1749823845926,-460.0,0.00022191,4]
[365660806,1749823845936,-160.0,0.00022265,3]
[365660808,1749823845945,-693.97484646,0.00022279,6]
[365660811,1749823845954,-649.03949317,0.0002231,2]
[365660813,1749823845964,-1000.0,0.0002231,2]
[365660815,1749823845973,-311.0,0.00022365,2]
[365660817,1749823845982,-1806.51976404,0.00022378,2]
[365660819,1749823845991,-500.0,0.00022378,2]
[365660821,1749823846001,-500.0,0.00022378,2]
[365660823,1749823846010,-463.1457295,0.00022378,2]
[365660825,1749823846019,-500.0,0.00022378,2]
[365660827,1749823846029,-500.0,0.00022378,2]
[365660829,1749823846039,-500.0,0.00022378,2]
[365660831,1749823846048,-500.0,0.00022378,2]
[365660833,1749823846061,-500.0,0.00022378,2]
[365660836,1749823846071,-500.0,0.00022378,2]
[365660838,1749823846081,-500.0,0.00022378,2]
[365660839,1749823846090,-500.0,0.00022378,2]
[365660841,1749823846099,-500.0,0.00022378,2]
[365660843,1749823846109,-500.0,0.00022378,2]
[365660845,1749823846118,-500.0,0.00022378,2]
[365660847,1749823846127,-500.0,0.00022378,2]
[365660849,1749823846137,-500.0,0.00022378,2]
[365660851,1749823846147,-500.0,0.00022378,2]
[365660853,1749823846156,-207.4,0.00022378,2]
[365660856,1749823846171,-693.97484646,0.00022417,7]
[365660857,1749823846180,-1000.0,0.00022421,2]
[365660859,1749823846191,-769.42541527,0.00022421,2]
[365660862,1749823846201,-500.0,0.00022464,4]
[365660863,1749823846210,-460.0,0.00022465,4]
[365660866,1749823846220,-460.0,0.00022465,4]
[365660868,1749823846229,-460.0,0.00022465,4]
[365660870,1749823846242,-218.79,0.00022465,4]
[365660872,1749823846251,-460.0,0.00022465,4]
[365660874,1749823846260,-460.0,0.00022465,4]
[365660875,1749823846270,-460.0,0.00022465,4]
[365660877,1749823846279,-460.0,0.00022465,4]
[365660880,1749823846289,-460.0,0.00022465,4]
[365660882,1749823846298,-460.0,0.00022465,4]
[365660884,1749823846307,-460.0,0.00022465,4]
[365660885,1749823846319,-460.0,0.00022465,4]
[365660887,1749823846333,-460.0,0.00022465,4]
[365660890,1749823846348,-460.0,0.00022465,4]
[365660892,1749823846360,-460.0,0.00022465,2]
[365660894,1749823846370,-460.0,0.00022465,4]
[365660896,1749823846380,-460.0,0.00022465,4]
[365660898,1749823846389,-460.0,0.00022465,4]
[365660900,1749823846399,-460.0,0.00022465,4]
[365660902,1749823846409,-460.0,0.00022465,4]
[365660904,1749823846418,-1834.56,0.00022465,4]
[365660906,1749823846427,-460.0,0.00022465,4]
[365660908,1749823846436,-2784.47,0.00022465,4]
[365660910,1749823846446,-460.0,0.00022465,4]
[365660912,1749823846455,-187.35,0.00022465,4]
[365660914,1749823846465,-460.0,0.00022465,4]
[365660916,1749823846474,-460.0,0.00022465,4]
[365660918,1749823846484,-460.0,0.00022465,4]
[365660920,1749823846493,-460.0,0.00022465,4]
[365660922,1749823846503,-460.0,0.00022465,4]
[365660924,1749823846513,-1433.23,0.00022465,4]
[365660926,1749823846523,-1946.46,0.00022465,4]
[365660928,1749823846533,-460.0,0.00022465,4]
[365660939,1749823846628,-2344.68,0.00022465,4]
[365660941,1749823846639,-854.78,0.00022465,4]
[365660943,1749823846648,-460.0,0.00022465,4]
[365660945,1749823846658,-460.0,0.00022465,4]
[365660947,1749823846667,-320.0,0.00022465,4]
[365660949,1749823846676,-460.0,0.00022465,4]
[365660951,1749823846685,-460.0,0.00022465,4]
[365660953,1749823846695,-470.89,0.00022465,4]
[365660955,1749823846704,-460.0,0.00022465,4]
[365660957,1749823846713,-460.0,0.00022465,4]
[365660959,1749823846722,-460.0,0.00022465,4]
[365660961,1749823846732,-460.0,0.00022465,4]
[365660962,1749823846741,-971.46,0.00022465,4]
[365660964,1749823846750,-460.0,0.00022465,4]
[365660966,1749823846760,-460.0,0.00022465,4]
[365660969,1749823846769,-460.0,0.00022465,4]
[365660971,1749823846779,-460.0,0.00022465,4]
[365660973,1749823846789,-560.74205213,0.00022465,4]
[365660975,1749823846798,-996.54,0.00022465,4]
[365660977,1749823846807,-460.0,0.00022465,4]
[365660979,1749823846816,-460.0,0.00022465,4]
[365660981,1749823846826,-460.0,0.00022465,4]
[365660983,1749823846835,-460.0,0.00022465,4]
[365660985,1749823846844,-460.0,0.00022465,4]
[365660987,1749823846853,-460.0,0.00022465,4]
[365660989,1749823846862,-713.93,0.00022465,4]
[365660990,1749823846871,-460.0,0.00022465,4]
[365660993,1749823846881,-460.0,0.00022465,4]
[365660994,1749823846890,-460.0,0.00022465,4]
[365660996,1749823846900,-460.0,0.00022465,4]
[365660998,1749823846909,-732.16,0.00022465,4]
[365661000,1749823846919,-712.62,0.00022465,4]
[365661002,1749823846928,-460.0,0.00022465,4]
[365661004,1749823846937,-2232.62,0.00022465,4]
[365661006,1749823846948,-460.0,0.00022465,4]
[365661009,1749823846958,-460.0,0.00022465,4]
[365661010,1749823846968,-460.0,0.00022465,4]
[365661012,1749823846977,-460.0,0.00022465,4]
[365661015,1749823846987,-1088.01,0.00022465,4]
[365661017,1749823846997,-460.0,0.00022465,4]
[365661019,1749823847006,-460.0,0.00022465,4]
[365661021,1749823847015,-460.0,0.00022465,4]
[365661022,1749823847024,-460.0,0.00022465,4]
[365661024,1749823847034,-190.0,0.00022465,4]
[365661027,1749823847043,-1889.33,0.00022465,4]
[365661029,1749823847053,-460.0,0.00022465,4]
[365661030,1749823847063,-2525.75,0.00022465,4]
[365661033,1749823847074,-627.58,0.00022465,4]
[365661035,1749823847083,-460.0,0.00022465,4]
[365661037,1749823847094,-460.0,0.00022465,4]
[365661038,1749823847106,-342.60115297,0.00022465,4]
[365661040,1749823847115,-3564.51,0.00022465,4]
[365661042,1749823847125,-460.0,0.00022465,4]
[365661044,1749823847134,-460.0,0.00022465,4]
[365661046,1749823847143,-460.0,0.00022465,4]
[365661048,1749823847152,-500.0,0.00022465,4]
[365661050,1749823847165,-460.0,0.00022465,4]
[365661052,1749823847174,-460.0,0.00022465,4]
[365661054,1749823847184,-720.9963032,0.00022543,2]
[365661056,1749823847194,-693.97484646,0.00022555,7]
[365661058,1749823847205,-364.0,0.00022625,2]
[365661060,1749823847215,-504.52806028,0.00022664,2]
[365661062,1749823847228,-693.97484646,0.00022693,7]
[365661064,1749823847238,-1500.0,0.00022696,2]
[365661066,1749823847248,-3000.0,0.000227,2]
[365661068,1749823847257,-3000.0,0.0002271,2]
[365661070,1749823847267,-3000.0,0.0002272,2]
[365661072,1749823847276,-1722.3,0.00022729,3]
[365661074,1749823847286,-861.16,0.00022729,3]
[365661076,1749823847296,-430.58,0.00022729,3]
[365661078,1749823847306,-351.86,0.00022729,3]
[365661080,1749823847315,-3000.0,0.0002273,2]
[365661082,1749823847331,-165.7,0.00022738,2]
[365661084,1749823847340,-460.0,0.00022739,4]
[365661085,1749823847350,-320.0,0.00022739,4]
[365661088,1749823847360,-320.0,0.00022739,4]
[365661089,1749823847371,-320.0,0.00022739,4]
[365661091,1749823847381,-320.0,0.00022739,4]
[365661094,1749823847391,-460.0,0.00022739,4]
[365661095,1749823847401,-460.0,0.00022739,4]
[365661097,1749823847410,-460.0,0.00022739,4]
[365661099,1749823847420,-320.0,0.00022739,4]
[365661101,1749823847429,-320.0,0.00022739,4]
[365661103,1749823847439,-451.71471395,0.00022739,4]
[365661105,1749823847448,-320.0,0.00022739,4]
[365661107,1749823847457,-320.0,0.00022739,4]
[365661108,1749823847466,-460.0,0.00022739,2]
[365661109,1749823847486,-323.03831783,0.00022739,4]
[365661110,1749823847497,-320.0,0.00022739,4]
[365661111,1749823847507,-460.0,0.00022739,4]
[365661112,1749823847516,-320.0,0.00022739,4]
[365661113,1749823847527,-460.0,0.00022739,4]
[365661114,1749823847536,-1834.56,0.00022739,4]
[365661115,1749823847545,-320.0,0.00022739,4]
[365661116,1749823847555,-2784.47,0.00022739,4]
[365661117,1749823847565,-460.0,0.00022739,4]
[365661118,1749823847577,-460.0,0.00022739,4]
[365661119,1749823847586,-320.0,0.00022739,4]
[365661120,1749823847596,-320.0,0.00022739,4]
[365661121,1749823847605,-320.0,0.00022739,4]
[365661122,1749823847614,-320.0,0.00022739,4]
[365661123,1749823847624,-1433.23,0.00022739,4]
[365661124,1749823847634,-1946.46,0.00022739,4]
[365661125,1749823847643,-460.0,0.00022739,4]
[365661126,1749823847653,-2344.68,0.00022739,4]
[365661127,1749823847662,-854.78,0.00022739,4]
[365661128,1749823847672,-460.0,0.00022739,4]
[365661129,1749823847681,-468.68,0.00022739,4]
[365661130,1749823847692,-320.0,0.00022739,4]
[365661132,1749823847701,-460.0,0.00022739,4]
[365661134,1749823847711,-470.89,0.00022739,4]
[365661136,1749823847720,-576.41,0.00022739,4]
[365661138,1749823847730,-460.0,0.00022739,4]
[365661139,1749823847739,-460.0,0.00022739,4]
[365661140,1749823847749,-320.0,0.00022739,4]
[365661141,1749823847760,-971.46,0.00022739,4]
[365661142,1749823847770,-460.0,0.00022739,4]
[365661143,1749823847780,-320.0,0.00022739,4]
[365661144,1749823847789,-460.0,0.00022739,4]
[365661145,1749823847800,-460.0,0.00022739,4]
[365661146,1749823847810,-996.54,0.00022739,4]
[365661147,1749823847822,-320.0,0.00022739,4]
[365661148,1749823847832,-460.0,0.00022739,4]
[365661149,1749823847841,-460.0,0.00022739,4]
[365661150,1749823847850,-320.0,0.00022739,4]
[365661151,1749823847861,-320.0,0.00022739,4]
[365661152,1749823847871,-460.0,0.00022739,4]
[365661153,1749823847881,-713.93,0.00022739,4]
[365661154,1749823847890,-320.0,0.00022739,4]
[365661155,1749823847901,-460.0,0.00022739,4]
[365661156,1749823847910,-320.0,0.00022739,4]
[365661157,1749823847920,-460.0,0.00022739,4]
[365661158,1749823847930,-732.16,0.00022739,4]
[365661159,1749823847940,-712.62,0.00022739,4]
[365661160,1749823847950,-460.0,0.00022739,4]
[365661161,1749823847961,-2232.62,0.00022739,4]
[365661162,1749823847970,-460.0,0.00022739,4]
[365661163,1749823847980,-310.0,0.00022739,4]
[365661164,1749823847989,-460.0,0.00022739,4]
[365661165,1749823847998,-320.0,0.00022739,4]
[365661166,1749823848008,-1088.01,0.00022739,4]
[365661167,1749823848018,-460.0,0.00022739,4]
[365661168,1749823848027,-320.0,0.00022739,4]
[365661169,1749823848038,-460.0,0.00022739,4]
[365661170,1749823848048,-460.0,0.00022739,4]
[365661171,1749823848058,-1889.33,0.00022739,4]
[365661172,1749823848069,-460.0,0.00022739,4]
[365661173,1749823848079,-2525.75,0.00022739,4]
[365661174,1749823848089,-627.58,0.00022739,4]
[365661175,1749823848100,-460.0,0.00022739,4]
[365661176,1749823848110,-460.0,0.00022739,4]
[365661177,1749823848120,-3564.51,0.00022739,4]
[365661178,1749823848131,-460.0,0.00022739,4]
[365661179,1749823848141,-320.0,0.00022739,4]
[365661180,1749823848152,-460.0,0.00022739,4]
[365661181,1749823848164,-500.0,0.00022739,4]
[365661182,1749823848175,-583.07554668,0.00022739,4]
[365661183,1749823848185,-460.0,0.00022739,4]
[365661184,1749823848195,-3000.0,0.0002274,2]
[365661185,1749823848206,-3000.0,0.0002275,2]
[365661186,1749823848216,-153.0,0.00022752,2]
[365661187,1749823848227,-153.0,0.00022752,2]
[365661188,1749823848237,-153.0,0.00022752,2]
[365661189,1749823848249,-3000.0,0.0002276,2]
[365661190,1749823848259,-623.0,0.00022763,2]
[365661191,1749823848269,-3000.0,0.0002277,2]
[365661193,1749823848279,-3000.0,0.0002278,2]
[365661195,1749823848290,-405.0,0.0002279,2]
[365661197,1749823848300,-3000.0,0.0002279,2]
[365661199,1749823848310,-3000.0,0.000228,2]
[365661201,1749823848321,-3000.0,0.0002281,2]
[365661203,1749823848332,-3000.0,0.0002282,2]
[365661205,1749823848343,-435.0,0.00022826,2]
[365661207,1749823848353,-3000.0,0.0002283,2]
[365661209,1749823848364,-693.97484646,0.00022831,8]
[365661211,1749823848374,-3000.0,0.0002284,2]
[365661213,1749823848384,-3000.0,0.0002285,2]
[365661215,1749823848395,-3000.0,0.0002286,2]
[365661217,1749823848405,-3000.0,0.0002287,2]
[365661219,1749823848415,-500.0,0.00022873,2]
[365661221,1749823848425,-3000.0,0.0002288,2]
[365661223,1749823848435,-323.29459618,0.00022882,2]
[365661225,1749823848444,-500.0,0.00022885,2]
[365661227,1749823848454,-3000.0,0.0002289,2]
[365661229,1749823848464,-3000.0,0.000229,2]
[365661231,1749823848474,-3000.0,0.0002291,2]
[365661233,1749823848484,-3000.0,0.0002292,2]
[365661235,1749823848493,-3190.128608,0.0002293,2]
[365661237,1749823848503,-420.0,0.00022943,2]
[365661239,1749823848512,-720.9963032,0.00022968,2]
[365661241,1749823848522,-693.97484646,0.00022969,8]
[365661243,1749823848531,-1000.0,0.00023,23]
[365661245,1749823848541,-229.39,0.00023012,5]
[365661247,1749823848554,-300.0,0.00023013,4]
[365661249,1749823848564,-300.0,0.00023013,4]
[365661250,1749823848578,-320.0,0.00023013,4]
[365661252,1749823848587,-460.0,0.00023013,4]
[365661254,1749823848597,-460.0,0.00023013,2]
[365661256,1749823848607,-460.0,0.00023013,4]
[365661259,1749823848617,-460.0,0.00023013,4]
[365661261,1749823848627,-1834.56,0.00023013,4]
[365661262,1749823848636,-2784.47,0.00023013,4]
[365661265,1749823848646,-460.0,0.00023013,4]
[365661267,1749823848656,-460.0,0.00023013,4]
[365661269,1749823848666,-1433.23,0.00023013,4]
[365661271,1749823848676,-1946.46,0.00023013,4]
[365661273,1749823848686,-460.0,0.00023013,4]
[365661275,1749823848696,-2344.68,0.00023013,4]
[365661276,1749823848706,-854.78,0.00023013,4]
[365661279,1749823848716,-316.4,0.00023013,4]
[365661281,1749823848726,-460.0,0.00023013,4]
[365661283,1749823848735,-470.89,0.00023013,4]
[365661296,1749823848860,-300.0,0.00023013,4]
[365661298,1749823848871,-460.0,0.00023013,4]
[365661300,1749823848882,-971.46,0.00023013,4]
[365661302,1749823848892,-460.0,0.00023013,4]
[365661304,1749823848902,-320.0,0.00023013,4]
[365661306,1749823848912,-460.0,0.00023013,4]
[365661308,1749823848922,-996.54,0.00023013,4]
[365661310,1749823848932,-540.19,0.00023013,4]
[365661311,1749823848942,-460.0,0.00023013,4]
[365661313,1749823848953,-460.0,0.00023013,4]
[365661315,1749823848963,-713.93,0.00023013,4]
[365661317,1749823848972,-320.0,0.00023013,4]
[365661319,1749823848982,-300.0,0.00023013,4]
[365661321,1749823848992,-732.16,0.00023013,4]
[365661323,1749823849002,-712.62,0.00023013,4]
[365661325,1749823849012,-460.0,0.00023013,4]
[365661327,1749823849022,-2232.62,0.00023013,4]
[365661329,1749823849031,-320.0,0.00023013,4]
[365661331,1749823849041,-460.0,0.00023013,4]
[365661333,1749823849051,-1088.01,0.00023013,4]
[365661335,1749823849061,-460.0,0.00023013,4]
[365661337,1749823849074,-460.0,0.00023013,4]
[365661339,1749823849084,-300.0,0.00023013,4]
[365661341,1749823849094,-1889.33,0.00023013,4]
[365661343,1749823849104,-300.0,0.00023013,4]
[365661345,1749823849115,-2525.75,0.00023013,4]
[365661347,1749823849126,-627.58,0.00023013,4]
[365661349,1749823849136,-460.0,0.00023013,4]
[365661351,1749823849146,-460.0,0.00023013,4]
[365661353,1749823849156,-3564.51,0.00023013,4]
[365661355,1749823849169,-290.03389082,0.00023013,4]
[365661357,1749823849179,-460.0,0.00023013,4]
[365661359,1749823849189,-500.0,0.00023013,4]
[365661361,1749823849199,-460.0,0.00023013,4]
[365661363,1749823849209,-365.2062734,0.00023068,2]
[365661365,1749823849219,-365.2062734,0.00023068,2]
[365661367,1749823849228,-365.2062734,0.00023068,2]
[365661369,1749823849239,-365.2062734,0.00023068,2]
[365661371,1749823849249,-365.2062734,0.00023068,2]
[365661373,1749823849259,-365.2062734,0.00023068,2]
[365661375,1749823849270,-365.2062734,0.00023068,2]
[365661377,1749823849280,-365.2062734,0.00023068,2]
[365661379,1749823849290,-365.2062734,0.00023068,2]
[365661381,1749823849301,-365.2062734,0.00023068,2]
[365661383,1749823849311,-364.0267413,0.00023068,2]
[365661385,1749823849324,-693.97484646,0.00023107,8]
[365661387,1749823849334,-500.0,0.00023156,2]
[365661389,1749823849344,-3004.0,0.00023188,2]
[365661391,1749823849355,-4418.0,0.00023215,2]
[365661393,1749823849366,-504.52806028,0.00023221,2]
[365661395,1749823849376,-500.0,0.00023244,2]
[365661397,1749823849386,-693.97484646,0.00023245,8]
[365661399,1749823849397,-150.119,0.00023265,2]
[365661401,1749823849406,-653.0,0.00023265,2]
[365661403,1749823849416,-2158.826,0.00023265,2]
[365661405,1749823849428,-623.0,0.00023276,2]
[365661407,1749823849437,-5000.0,0.00023282,3]
[365661409,1749823849446,-460.0,0.00023287,4]
[365661411,1749823849456,-460.0,0.00023287,2]
[365661413,1749823849465,-460.0,0.00023287,4]
[365661415,1749823849475,-366.86,0.00023287,4]
[365661417,1749823849484,-1834.56,0.00023287,4]
[365661419,1749823849494,-2784.47,0.00023287,4]
[365661421,1749823849504,-310.49,0.00023287,4]
[365661423,1749823849513,-460.0,0.00023287,4]
[365661425,1749823849522,-1433.23,0.00023287,4]
[365661427,1749823849532,-1946.46,0.00023287,4]
[365661429,1749823849541,-460.0,0.00023287,4]
[365661431,1749823849551,-854.78,0.00023287,4]
[365661433,1749823849561,-2344.68,0.00023287,4]
[365661435,1749823849573,-460.0,0.00023287,4]
[365661437,1749823849582,-470.89,0.00023287,4]
[365661439,1749823849591,-460.0,0.00023287,4]
[365661441,1749823849601,-971.46,0.00023287,4]
[365661443,1749823849611,-460.0,0.00023287,4]
[365661446,1749823849621,-460.0,0.00023287,4]
[365661448,1749823849630,-996.54,0.00023287,4]
[365661450,1749823849639,-225.79,0.00023287,4]
[365661452,1749823849649,-460.0,0.00023287,4]
[365661454,1749823849658,-713.93,0.00023287,4]
[365661456,1749823849667,-732.16,0.00023287,4]
[365661458,1749823849676,-712.62,0.00023287,4]